bitfinex/quotes_ETHUSD_20250328
["timestamp","ask_amount","ask_price","bid_price","bid_amount"]
[1743152948208,5.2315,1911.5,1911.3,5.034]
[1743152948620,10.4632,1911.5,1911.3,5.034]
[1743152948925,5.2315,1911.5,1911.3,5.034]
[1743152949327,5.23176,1911.4,1911.3,5.034]
[1743152949495,10.46378,1911.4,1911.2,27.664]
[1743152949695,5.23176,1911.4,1911.3,5.034]
[1743152952231,5.23167,1911.5,1911.3,5.034]
[1743152952397,5.23176,1911.4,1911.3,5.034]
[1743152955443,5.99256,1911.4,1911.3,5.034]
[1743152956145,5.23176,1911.4,1911.3,5.034]
[1743152956641,10.46334,1911.5,1911.3,5.034]
[1743152956815,5.23176,1911.4,1911.3,5.034]
[1743152958416,0.8208,1911.3,1911.2,27.664]
[1743152958615,6.05284,1911.3,1911.2,32.699]
[1743152959343,5.23204,1911.3,1911.2,32.699]
[1743152963253,5.23204,1911.3,1911.2,5.035]
[1743152963768,5.23204,1911.3,1911.0,5.034]
[1743152963769,5.23271,1911.1,1911.0,5.034]
[1743152963975,5.23271,1911.1,1910.8,27.67]
[1743152963976,5.23313,1910.9,1910.8,32.704]
[1743152965049,5.23341,1910.8,1910.5,0.27352708]
[1743152965257,5.23341,1910.8,1910.6,32.704]
[1743152965451,5.23341,1910.8,1910.6,36.07946271]
[1743152965847,5.23368,1910.7,1910.6,36.07946271]
[1743152967054,5.23341,1910.8,1910.6,36.07946271]
[1743152967458,10.46703,1910.8,1910.6,36.07946271]
[1743152967929,5.23341,1910.8,1910.6,36.07946271]
[1743152968353,5.23316,1910.9,1910.6,36.07946271]
[1743152968657,10.46648,1910.9,1910.7,3.60794627]
[1743152968956,5.23341,1910.8,1910.7,3.60794627]
[1743152970071,5.23316,1910.9,1910.7,3.60794627]
[1743152970244,10.46646,1910.9,1910.7,3.60794627]
[1743152970567,5.23341,1910.8,1910.7,3.60794627]
[1743152970865,5.23341,1910.8,1910.6,36.07946271]
[1743152971533,5.23368,1910.7,1910.6,36.07946271]
[1743152971961,10.46699,1910.8,1910.6,36.07946271]
[1743152972147,10.467,1910.8,1910.6,36.07946271]
[1743152972872,10.46698,1910.8,1910.6,36.07946271]
[1743152974144,5.23341,1910.8,1910.6,36.07946271]
[1743152974459,5.23368,1910.7,1910.6,36.07946271]
[1743152974661,5.23368,1910.7,1910.6,32.704]
[1743152975460,5.23368,1910.7,1910.6,32.705]
[1743152975850,5.2331,1911.0,1910.6,33.4664]
[1743152976049,10.46488,1911.2,1910.9,0.771]
[1743152976242,5.23233,1911.2,1911.0,5.034]
[1743152976555,5.23211,1911.3,1911.0,6.137805]
[1743152976856,10.46438,1911.3,1911.0,6.137805]
[1743152977031,5.23211,1911.3,1911.0,6.137805]
[1743152977233,10.46435,1911.3,1911.0,6.137805]
[1743152977433,5.23236,1911.2,1911.0,6.137805]
[1743152978182,10.46486,1911.2,1911.0,6.137805]
[1743152978657,5.23236,1911.2,1911.0,6.137805]
[1743152979063,10.46484,1911.2,1911.0,6.137805]
[1743152979766,5.23258,1911.1,1911.0,6.137805]
[1743152980145,5.23236,1911.2,1911.0,6.137805]
[1743152980461,8.60697819,1911.1,1910.7,5.50698733]
[1743152980654,6.00868,1911.1,1910.9,5.034]
[1743152980965,5.23258,1911.1,1910.9,5.034]
[1743152981350,5.233,1911.0,1910.9,5.034]
[1743152982670,10.46535,1911.1,1910.9,5.034]
[1743152983335,5.23286,1911.0,1910.9,5.034]
[1743152985041,10.46532,1911.1,1910.9,5.034]
[1743152985271,5.23258,1911.1,1910.9,5.034]
[1743152985481,5.23286,1911.0,1910.9,5.034]
[1743152988241,5.23258,1911.1,1910.9,5.034]
[1743152988440,5.99915,1911.7,1911.1,0.7625]
[1743152988656,5.99915,1911.7,1910.9,5.5374]
[1743152988657,5.23113,1911.7,1911.3,5.99439]
[1743152988852,10.46224,1911.7,1911.4,32.708]
[1743152989984,10.46221,1911.7,1911.4,32.708]
[1743152990987,5.2311,1911.7,1911.4,32.708]
[1743152991192,5.23071,1911.8,1911.4,37.93967]
[1743152991346,10.46153,1911.8,1911.4,37.93959]
[1743152991547,10.46153,1911.8,1911.4,42.47177285]
[1743152992023,5.23071,1911.8,1911.4,42.47177285]
[1743152992278,10.46154,1911.8,1911.4,42.47177285]
[1743152992477,5.23071,1911.8,1911.4,42.47177285]
[1743152992655,5.23071,1911.8,1911.6,0.7947]
[1743152993293,5.28045,1911.9,1911.6,0.7947]
[1743152993457,5.23067,1911.8,1911.6,0.7947]
[1743152993657,5.28045,1911.9,1911.6,0.7947]
[1743152993983,10.51102,1911.9,1911.6,0.7947]
[1743152994181,5.28045,1911.9,1911.6,6.02585]
[1743152994377,5.28045,1911.9,1911.6,1.397307]
[1743152994556,0.05,1911.9,1911.6,6.628387]
[1743152994752,0.05,1911.9,1911.7,0.05230728]
[1743152994956,0.05,1911.9,1911.8,5.032]
[1743152997780,5.28039,1911.9,1911.8,5.032]
[1743152999552,0.05,1911.9,1911.8,5.032]
[1743152999784,0.05,1911.9,1911.8,6.058289]
[1743153000082,0.05,1911.9,1911.8,5.032]
[1743153000284,5.28039,1911.9,1911.8,5.032]
[1743153003652,0.05,1911.9,1911.8,5.8589]
[1743153005706,6.08699,1911.9,1911.8,5.031]
[1743153007086,5.23106,1911.7,1911.5,0.8041]
[1743153007250,5.23089,1911.8,1911.6,5.03]
[1743153007655,5.23094,1911.7,1911.6,5.03]
[1743153007952,5.23121,1911.6,1911.5,0.8041]
[1743153008156,5.23121,1911.6,1911.5,5.03]
[1743153009690,6.03501,1911.6,1911.5,5.03]
[1743153010388,5.23121,1911.6,1911.5,5.03]
[1743153010894,5.23103,1911.7,1911.5,5.03]
[1743153011401,6.03449,1911.8,1911.5,5.03]
[1743153011402,5.23069,1911.8,1911.5,5.03]
[1743153011686,10.46159,1911.8,1911.5,5.8051]
[1743153011887,5.23095,1911.7,1911.5,5.8051]
[1743153013059,5.23095,1911.7,1911.5,5.03]
[1743153013260,5.23121,1911.6,1911.5,5.03]
[1743153014505,5.23121,1911.6,1911.4,27.675]
[1743153014506,5.23149,1911.5,1911.4,27.675]
[1743153014683,5.23149,1911.5,1911.4,32.705]
[1743153014997,7.07846,1911.5,1911.4,32.705]
[1743153015296,7.07846,1911.5,1911.4,27.675]
[1743153016677,7.07846,1911.5,1911.4,27.675]
[1743153017601,5.23149,1911.5,1911.4,27.675]
[1743153017762,10.46261,1911.6,1911.4,27.675]
[1743153017962,5.23121,1911.6,1911.5,5.03]
[1743153019892,16.47213,1911.7,1911.5,5.03]
[1743153020096,16.47213,1911.7,1911.5,5.7803]
[1743153020795,5.23121,1911.6,1911.5,5.7803]
[1743153021590,5.23121,1911.6,1911.5,5.03]
[1743153024006,5.23099,1911.7,1911.5,8.28322701]
[1743153024296,10.46148,1911.8,1911.5,8.28322701]
[1743153024506,10.46148,1911.8,1911.5,8.33553701]
[1743153024507,5.23067,1911.8,1911.5,8.33553701]
[1743153025400,10.46153,1911.8,1911.5,8.28322701]
[1743153025595,10.46153,1911.8,1911.5,8.335537]
[1743153025774,5.28043,1911.9,1911.6,6.0647337]
[1743153025966,10.51099,1911.9,1911.6,0.8335537]
[1743153026170,10.51099,1911.9,1911.6,0.88586066]
[1743153026493,5.28043,1911.9,1911.6,0.88586066]
[1743153026668,10.51105,1911.9,1911.6,0.88586066]
[1743153026875,5.23068,1911.8,1911.6,0.8335537]
[1743153027306,5.23068,1911.8,1911.6,28.5015537]
[1743153027470,5.28043,1911.9,1911.6,28.5015537]
[1743153028304,5.28043,1911.9,1911.7,2.85015537]
[1743153029077,0.05,1911.9,1911.7,2.85015537]
[1743153029282,5.2804,1911.9,1911.7,2.85015537]
[1743153029797,10.51098,1911.9,1911.7,2.85015537]
[1743153030104,5.2804,1911.9,1911.7,2.85015537]
[1743153030890,10.51097,1911.9,1911.7,2.85015537]
[1743153031190,5.2804,1911.9,1911.7,2.85015537]
[1743153031393,5.2804,1911.9,1911.6,28.5015537]
[1743153031907,5.23084,1911.8,1911.6,28.5015537]
[1743153032621,5.28041,1911.9,1911.6,28.5015537]
[1743153033088,5.23076,1911.8,1911.6,28.5015537]
[1743153033675,5.28041,1911.9,1911.6,28.5015537]
[1743153034607,10.51096,1911.9,1911.6,28.5015537]
[1743153034804,10.51096,1911.9,1911.7,5.029]
[1743153034999,5.28041,1911.9,1911.7,5.029]
[1743153035803,10.51096,1911.9,1911.7,5.029]
[1743153035987,5.28041,1911.9,1911.7,5.029]
[1743153036190,5.23067,1911.8,1911.7,5.029]
[1743153039786,0.05,1911.9,1911.7,5.8059922]
[1743153039991,0.05,1911.9,1911.8,0.7943]
[1743153040303,0.05,1911.9,1911.8,6.02497]
[1743153040491,0.05,1911.9,1911.8,0.7943]
[1743153040686,0.05,1911.9,1911.7,5.8059922]
[1743153040911,0.05,1911.9,1911.8,0.58059922]
[1743153041082,0.05,1911.9,1911.8,1.36989922]
[1743153042217,10.51104,1911.9,1911.7,5.8059922]
[1743153042410,10.51105,1911.9,1911.7,5.029]
[1743153042615,10.5111,1911.9,1911.7,5.029]
[1743153042818,5.28048,1911.9,1911.7,5.029]
[1743153044215,10.51104,1911.9,1911.7,5.029]
[1743153044425,5.23067,1911.8,1911.7,5.029]
[1743153046303,5.28048,1911.9,1911.7,5.029]
[1743153047723,10.51108,1911.9,1911.6,27.668]
[1743153047932,10.51108,1911.9,1911.8,5.027]
[1743153048133,5.28048,1911.9,1911.8,5.027]
[1743153051901,5.23094,1911.7,1911.6,27.668]
[1743153052201,5.23094,1911.7,1911.6,32.695]
[1743153055435,6.04754,1911.7,1911.6,32.695]
[1743153055624,6.04754,1911.7,1911.6,27.668]
[1743153059143,5.23094,1911.7,1911.6,27.668]
[1743153060868,5.23094,1911.7,1911.5,5.027]
[1743153060869,10.46206,1911.7,1911.5,5.027]
[1743153061336,5.23121,1911.6,1911.5,5.027]
[1743153061857,6.03761,1911.6,1911.5,5.027]
[1743153062724,5.23176,1911.4,1911.3,27.665]
[1743153063041,5.23176,1911.4,1911.3,32.692]
[1743153063252,5.23176,1911.4,1911.3,27.665]
[1743153064893,6.04356,1911.4,1911.3,27.665]
[1743153065598,5.23272,1911.1,1910.8,28.4874]
[1743153065777,5.23231,1911.2,1911.0,5.027]
[1743153066149,10.46479,1911.2,1911.0,5.027]
[1743153066448,5.23258,1911.1,1910.9,0.27348801]
[1743153066691,5.23286,1911.0,1910.9,5.027]
[1743153066861,5.23328,1910.9,1910.5,5.7877]
[1743153067062,5.2335,1910.8,1910.5,6.92897351]
[1743153067281,5.2335,1910.8,1910.5,7.20222926]
[1743153067590,5.23368,1910.7,1910.5,7.20222926]
[1743153070209,5.23368,1910.7,1910.5,6.06095575]
[1743153070595,5.23368,1910.7,1910.5,5.30025575]
[1743153073394,5.23342,1910.8,1910.5,10.53443575]
[1743153073922,10.46702,1910.8,1910.5,5.30025575]
[1743153074068,5.23377,1910.7,1910.5,5.30025575]
[1743153075208,5.23377,1910.7,1910.5,6.35372733]
[1743153077114,5.23344,1910.8,1910.5,6.35372733]
[1743153077310,5.23314,1910.9,1910.6,0.7722]
[1743153077616,10.46595,1911.0,1910.6,6.05836674]
[1743153077922,5.23288,1911.0,1910.6,6.00601]
[1743153078090,5.23288,1911.0,1910.7,0.600601]
[1743153078091,10.46592,1911.0,1910.7,0.600601]
[1743153078440,10.46595,1911.0,1910.7,0.600601]
[1743153078614,5.23313,1910.9,1910.7,0.600601]
[1743153079329,5.23288,1911.0,1910.7,0.59649651]
[1743153080025,5.23288,1911.0,1910.6,6.00597]
[1743153080205,5.23288,1911.0,1910.6,33.68397]
[1743153080406,10.46591,1911.0,1910.6,33.68397]
[1743153080608,5.23314,1910.9,1910.6,33.68397]
[1743153081420,5.23288,1911.0,1910.6,38.91776]
[1743153081725,5.23288,1911.0,1910.6,43.44490873]
[1743153082236,5.23288,1911.0,1910.6,43.44491873]
[1743153082535,10.46592,1911.0,1910.6,38.21111873]
[1743153082711,5.23288,1911.0,1910.6,38.21111873]
[1743153083302,10.46593,1911.0,1910.6,38.21111873]
[1743153083936,5.23288,1911.0,1910.6,43.44492873]
[1743153084350,17.30237,1911.3,1910.9,5.23302]
[1743153084611,5.23164,1911.5,1911.1,8.58413819]
[1743153084807,5.23096,1911.7,1911.3,7.83013819]
[1743153085024,5.23096,1911.7,1911.4,5.7805]
[1743153085754,10.46269,1911.6,1911.4,5.7805]
[1743153085974,5.2313,1911.6,1911.4,5.7805]
[1743153086958,5.2313,1911.6,1911.4,5.027]
[1743153087162,5.23149,1911.5,1911.4,5.027]
[1743153087652,5.75443,1911.6,1911.4,5.027]
[1743153087967,5.2313,1911.6,1911.4,5.027]
[1743153091441,10.46269,1911.6,1911.4,5.027]
[1743153091750,5.2313,1911.6,1911.4,5.027]
[1743153091911,10.46269,1911.6,1911.4,5.027]
[1743153092254,3.42619819,1911.8,1911.4,5.026]
[1743153092410,5.23133,1911.6,1911.4,5.026]
[1743153093153,5.23094,1911.7,1911.4,5.026]
[1743153093452,10.46211,1911.7,1911.4,5.026]
[1743153093842,5.23123,1911.6,1911.4,5.026]
[1743153094456,6.277447,1911.6,1911.4,5.026]
[1743153095056,5.23094,1911.7,1911.4,5.026]
[1743153095216,10.46207,1911.7,1911.4,5.026]
[1743153095418,5.23124,1911.6,1911.4,5.026]
[1743153096517,5.23124,1911.6,1911.4,32.697]
[1743153096913,5.23096,1911.7,1911.4,32.697]
[1743153097315,0.05,1911.9,1911.5,0.83291301]
[1743153097519,0.05,1911.9,1911.8,8.60956819]
[1743153097713,0.05,1911.9,1911.8,13.63456819]
[1743153098584,0.05,1911.9,1911.8,11.03627]
[1743153098758,0.05,1911.9,1911.8,5.8056]
[1743153099354,0.05,1911.9,1911.8,11.75443384]
[1743153100474,0.05,1911.9,1911.8,6.52376384]
[1743153100649,0.05,1911.9,1911.8,5.8056]
[1743153101459,0.05,1911.9,1911.8,11.08857066]
[1743153101768,0.05,1911.9,1911.8,11.03627]
[1743153102581,0.05,1911.9,1911.8,5.8056]
[1743153102889,0.05,1911.9,1911.8,5.85790124]
[1743153103090,0.05,1911.9,1911.8,7.48983836]
[1743153103583,0.05,1911.9,1911.8,12.72050836]
[1743153103796,0.05,1911.9,1911.8,12.66820712]
[1743153104475,0.05,1911.9,1911.8,15.26650531]
[1743153105558,0.05,1911.9,1911.8,15.81650531]
[1743153106087,0.05,1911.9,1911.8,18.81550531]
[1743153106385,0.05,1911.9,1911.8,12.66720712]
[1743153106801,0.05,1911.9,1911.8,15.26550531]
[1743153107087,0.05,1911.9,1911.8,2.41253712]
[1743153107296,0.05,1911.9,1911.8,7.43553712]
[1743153108005,0.05,1911.9,1911.8,12.66620712]
[1743153108469,0.05,1911.9,1911.8,6.65493712]
[1743153108690,0.05,1911.9,1911.8,5.023]
[1743153109079,0.05,1911.9,1911.6,6.04648]
[1743153109281,0.05,1911.9,1911.7,5.023]
[1743153109479,5.28042,1911.9,1911.7,5.023]
[1743153109975,5.28042,1911.9,1911.6,0.8153]
[1743153110177,5.28042,1911.9,1911.7,5.023]
[1743153110476,5.23087,1911.8,1911.4,38.043845]
[1743153110792,6.00975,1911.7,1911.5,36.4903845]
[1743153110997,11.24089,1911.7,1911.5,32.686]
[1743153111685,6.00975,1911.7,1911.5,32.686]
[1743153112086,0.7787,1911.7,1911.5,32.686]
[1743153112301,5.23071,1911.8,1911.5,32.686]
[1743153112506,5.23105,1911.7,1911.5,27.663]
[1743153112683,6.583115,1911.6,1911.5,27.663]
[1743153112885,5.23197,1911.4,1911.2,0.27274276]
[1743153113090,3.42709819,1911.3,1910.9,5.023]
[1743153113286,5.23332,1910.9,1910.8,5.023]
[1743153114426,5.23368,1910.7,1910.6,32.687]
[1743153115712,5.23368,1910.7,1910.6,27.664]
[1743153115887,7.83197819,1910.7,1910.6,27.664]
[1743153116092,5.23368,1910.7,1910.6,27.664]
[1743153119497,5.23368,1910.7,1910.6,27.93696294]
[1743153120495,5.23368,1910.7,1910.6,27.664]
[1743153120496,9.3546014,1910.7,1910.6,27.664]
[1743153121316,6.75630321,1910.7,1910.6,27.664]
[1743153122012,14.59314819,1910.9,1910.6,27.664]
[1743153122183,0.7517,1911.1,1910.8,7.83153819]
[1743153122513,6.7617,1911.3,1911.0,5.23273]
[1743153122689,10.46388,1911.4,1911.0,5.28505417]
[1743153122894,5.23206,1911.3,1911.0,1.18233259]
[1743153123313,5.23206,1911.3,1911.0,1.13000842]
[1743153123621,5.23236,1911.2,1910.9,0.7821]
[1743153124997,5.23264,1911.1,1910.7,11.05314]
[1743153125198,5.23152,1911.5,1911.0,5.2327]
[1743153125399,5.23152,1911.5,1911.1,7.67462537]
[1743153125601,5.23152,1911.5,1911.1,13.67447791]
[1743153125902,5.23152,1911.5,1911.1,13.62215073]
[1743153126097,11.24127,1911.6,1911.2,5.23219]
[1743153126503,5.23098,1911.7,1911.3,5.99151]
[1743153126721,5.23098,1911.7,1911.3,0.7597]
[1743153126926,5.23131,1911.6,1911.3,0.7597]
[1743153127130,5.23158,1911.5,1911.3,0.7597]
[1743153127294,10.46327,1911.5,1911.1,13.61453819]
[1743153127623,10.46326,1911.5,1911.1,11.01624]
[1743153127926,5.23215,1911.3,1911.2,5.024]
[1743153128130,6.23500203,1911.3,1911.2,5.024]
[1743153128806,1.00285203,1911.3,1911.2,5.024]
[1743153129007,5.23178,1911.4,1911.2,5.024]
[1743153129008,10.46373,1911.4,1911.2,5.024]
[1743153129322,5.23204,1911.3,1911.2,5.024]
[1743153132928,5.23178,1911.4,1911.2,5.024]
[1743153133128,5.23204,1911.3,1911.2,5.024]
[1743153133696,5.23178,1911.4,1911.2,5.024]
[1743153134701,5.23149,1911.5,1911.2,5.024]
[1743153135029,5.23186,1911.4,1911.2,5.024]
[1743153135902,5.23149,1911.5,1911.2,5.024]
[1743153136415,8.57955819,1911.6,1911.2,5.024]
[1743153136620,5.23095,1911.7,1911.3,0.7667]
[1743153136820,6.13195,1911.7,1911.3,0.7667]
[1743153137333,5.23124,1911.6,1911.3,0.7667]
[1743153137635,5.23204,1911.3,1911.2,5.024]
[1743153138974,5.23187,1911.4,1911.2,5.024]
[1743153139277,11.22832,1911.5,1911.2,5.024]
[1743153139580,5.59829819,1911.6,1911.2,5.024]
[1743153139581,8.23132,1911.6,1911.2,5.024]
[1743153139880,13.46279,1911.6,1911.2,5.024]
[1743153140036,5.2315,1911.5,1911.2,5.7875]
[1743153140466,8.93825003,1911.6,1911.2,5.7875]
[1743153141081,5.23155,1911.5,1911.2,5.7875]
[1743153141248,14.16968003,1911.6,1911.2,5.7875]
[1743153141955,0.05,1911.9,1911.6,5.23096]
[1743153142155,0.05,1911.9,1911.7,5.023]
[1743153142483,0.05,1911.9,1911.8,0.7541]
[1743153143179,5.28039,1911.9,1911.7,5.023]
[1743153143543,11.117769,1911.9,1911.7,5.023]
[1743153144481,5.887129,1911.9,1911.7,5.023]
[1743153144661,5.28039,1911.9,1911.7,5.023]
[1743153145066,0.05,1911.9,1911.7,5.023]
[1743153145711,5.28044,1911.9,1911.7,5.023]
[1743153147270,0.05,1911.9,1911.7,5.023]
[1743153147470,5.28048,1911.9,1911.7,5.023]
[1743153147715,0.05,1911.9,1911.7,5.023]
[1743153147897,5.28051,1911.9,1911.7,5.023]
[1743153148067,10.5111,1911.9,1911.7,5.023]
[1743153148267,5.28051,1911.9,1911.7,5.023]
[1743153149940,5.23067,1911.8,1911.7,5.023]
[1743153150377,7.82896819,1911.8,1911.7,5.023]
[1743153152614,10.82896819,1911.8,1911.7,5.023]
[1743153153522,5.23121,1911.7,1911.4,5.022]
[1743153153709,5.23129,1911.6,1911.4,5.022]
[1743153155192,5.23121,1911.7,1911.4,5.022]
[1743153156522,8.23069,1911.8,1911.5,0.7702]
[1743153158490,11.29041,1911.9,1911.5,0.82251248]
[1743153158696,6.06,1911.9,1911.5,34.82428278]
[1743153158917,0.05,1911.9,1911.5,34.771974]
[1743153159115,0.05,1911.9,1911.5,34.771944]
[1743153159444,0.05,1911.9,1911.5,37.37024219]
[1743153159651,0.05,1911.9,1911.7,0.7593]
[1743153159932,0.05,1911.9,1911.8,5.021]
[1743153160703,5.28039,1911.9,1911.8,5.021]
[1743153160946,6.05659,1911.9,1911.8,5.021]
[1743153161446,10.46215,1911.7,1911.6,5.021]
[1743153161948,5.231,1911.7,1911.6,5.021]
[1743153165759,0.05,1911.9,1911.6,5.8398]
[1743153166051,0.05,1911.9,1911.6,8.43809819]
[1743153166252,5.28044,1911.9,1911.6,5.8398]
[1743153166470,10.51102,1911.9,1911.6,5.8398]
[1743153166772,5.28044,1911.9,1911.6,5.8398]
[1743153166924,10.51102,1911.9,1911.6,5.8398]
[1743153167254,0.05,1911.9,1911.6,5.8398]
[1743153167458,5.2308,1911.8,1911.6,5.8398]
[1743153167961,5.2308,1911.8,1911.7,5.021]
[1743153168860,8.88022719,1911.8,1911.7,5.021]
[1743153169066,6.281929,1911.8,1911.7,5.021]
[1743153169960,5.23121,1911.6,1911.5,27.668]
[1743153170142,7.82950819,1911.6,1911.5,27.668]
[1743153170342,11.64480819,1911.6,1911.5,27.668]
[1743153170561,12.20160922,1911.6,1911.5,27.668]
[1743153170940,9.60331103,1911.6,1911.5,27.668]
[1743153171163,12.20160922,1911.6,1911.5,27.668]
[1743153171476,12.20160922,1911.6,1911.1,0.8195]
[1743153171477,5.23217,1911.3,1911.1,0.8195]
[1743153171979,5.23217,1911.3,1911.1,1.09243986]
[1743153172341,5.23231,1911.2,1911.1,0.27293986]
[1743153173946,10.46441,1911.3,1911.1,0.27293986]
[1743153174146,5.23217,1911.3,1911.1,0.27293986]
[1743153174347,5.23231,1911.2,1911.1,0.27293986]
[1743153175068,5.23217,1911.3,1911.0,5.021]
[1743153175272,5.23217,1911.3,1911.1,0.27296838]
[1743153176034,5.23231,1911.2,1911.1,0.27296838]
[1743153176462,5.23217,1911.3,1911.1,0.27296838]
[1743153176692,10.46438,1911.3,1911.1,0.27296838]
[1743153177365,5.23231,1911.2,1911.1,0.27296838]
[1743153177791,5.23231,1911.2,1911.0,5.021]
[1743153178163,5.23217,1911.3,1911.0,5.29388887]
[1743153179689,5.23235,1911.2,1911.0,5.29388887]
[1743153180394,5.23217,1911.3,1911.0,5.29388887]
[1743153180702,10.46439,1911.3,1911.0,5.29388887]
[1743153181505,8.23178,1911.4,1911.0,5.29388887]
[1743153181659,5.23158,1911.5,1911.1,6.05460406]
[1743153181869,5.23158,1911.5,1911.1,6.00228]
[1743153182191,10.46325,1911.5,1911.1,0.7697]
[1743153182579,5.23177,1911.4,1911.1,0.7697]
[1743153182911,5.23177,1911.4,1911.1,2.2202816]
[1743153183072,19.47264,1911.6,1911.1,12.73754964]
[1743153183272,19.47264,1911.6,1911.1,7.4526916]
[1743153183695,11.24125,1911.6,1911.2,5.23229]
[1743153183928,11.24125,1911.6,1911.3,0.7963]
[1743153184096,16.47265,1911.6,1911.3,0.7963]
[1743153184782,11.24125,1911.6,1911.3,0.7963]
[1743153185211,10.46211,1911.7,1911.4,5.021]
[1743153185531,5.23127,1911.6,1911.4,5.021]
[1743153186324,5.23095,1911.7,1911.4,5.021]
[1743153186530,5.23069,1911.8,1911.5,0.7827]
[1743153188314,5.28048,1911.9,1911.5,0.7827]
[1743153188515,5.28048,1911.9,1911.5,8.66476844]
[1743153188688,5.28048,1911.9,1911.6,0.86647684]
[1743153188895,10.51106,1911.9,1911.6,0.86647684]
[1743153189098,10.46162,1911.8,1911.5,0.7827]
[1743153189417,5.23069,1911.8,1911.5,0.7827]
[1743153189622,5.28043,1911.9,1911.5,6.01415]
[1743153190040,10.51101,1911.9,1911.5,6.01415]
[1743153190202,5.28043,1911.9,1911.6,0.601415]
[1743153190548,10.511,1911.9,1911.6,0.601415]
[1743153190728,5.23077,1911.8,1911.6,0.601415]
[1743153190927,5.23077,1911.8,1911.5,0.7827]
[1743153191351,5.2311,1911.7,1911.5,0.7827]
[1743153191648,5.23176,1911.4,1911.2,27.673]
[1743153192227,10.46371,1911.4,1911.2,27.673]
[1743153192597,5.23176,1911.4,1911.2,27.673]
[1743153192802,5.23204,1911.3,1911.2,27.673]
[1743153194722,5.23204,1911.3,1911.0,0.27288887]
[1743153194723,8.23258,1911.1,1911.0,0.27288887]
[1743153195006,8.23258,1911.1,1910.7,0.7572]
[1743153195007,5.23352,1910.8,1910.7,5.02]
[1743153195397,7.83148819,1910.9,1910.5,27.9429282]
[1743153195601,5.23395,1910.6,1910.5,27.9429282]
[1743153195829,5.23395,1910.6,1910.5,32.9629282]
[1743153196811,5.23395,1910.6,1910.5,27.67]
[1743153197318,5.23395,1910.6,1910.5,27.94285294]
[1743153197832,5.23395,1910.6,1910.5,27.67]
[1743153199357,5.23393,1910.7,1910.5,28.75234722]
[1743153200350,10.46779,1910.7,1910.5,28.75234722]
[1743153201247,9.00283,1910.9,1910.5,28.75234722]
[1743153201451,13.46644,1910.9,1910.5,37.38524894]
[1743153201745,5.23341,1910.8,1910.5,32.15102894]
[1743153201949,10.46702,1910.8,1910.5,32.15102894]
[1743153202150,5.23341,1910.8,1910.5,28.75234722]
[1743153202538,5.23289,1911.0,1910.5,33.98648722]
[1743153202743,5.23289,1911.0,1910.6,7.83205819]
[1743153202921,5.23289,1911.0,1910.7,5.022]
[1743153203735,5.23323,1910.9,1910.7,5.022]
[1743153204560,5.23341,1910.8,1910.7,5.022]
[1743153208258,5.79496003,1910.8,1910.7,5.022]
[1743153208561,5.23395,1910.6,1910.5,27.94284722]
[1743153208864,5.23369,1910.7,1910.5,27.94284722]
[1743153209380,5.23297,1911.0,1910.6,6.0075]
[1743153209528,5.23297,1911.0,1910.6,8.60579819]
[1743153209724,10.46603,1911.0,1910.6,8.60579819]
[1743153209957,5.23313,1910.9,1910.6,10.18578254]
[1743153210184,5.23313,1910.9,1910.7,0.05233129]
[1743153210523,5.23313,1910.9,1910.6,10.18578254]
[1743153211257,5.23313,1910.9,1910.6,4.95198254]
[1743153211763,5.23384,1910.7,1910.5,27.94284722]
[1743153212364,5.23395,1910.6,1910.5,27.94284722]
[1743153212734,5.23384,1910.7,1910.5,32.96484722]
[1743153213661,10.4677,1910.7,1910.5,32.96484722]
[1743153213861,5.23384,1910.7,1910.5,32.96484722]
[1743153214284,5.23384,1910.7,1910.5,27.94284722]
[1743153214484,5.23395,1910.6,1910.5,27.94284722]
[1743153214667,5.23395,1910.6,1910.5,0.27284722]
[1743153214870,5.23384,1910.7,1910.5,0.27284722]
[1743153216272,5.23395,1910.6,1910.5,0.27284722]
[1743153221083,5.2347,1910.4,1910.3,5.022]
[1743153221378,6.0459,1910.4,1910.3,5.022]
[1743153221694,5.23477,1910.3,1910.2,27.681]
[1743153226981,5.23477,1910.3,1910.2,27.95383948]
[1743153228771,0.8197,1910.8,1910.3,0.7792]
[1743153228987,6.01,1910.9,1910.4,5.022]
[1743153229176,5.23386,1910.7,1910.4,5.022]
[1743153229568,5.23396,1910.6,1910.4,5.022]
[1743153230993,5.23371,1910.7,1910.4,5.022]
[1743153231194,5.23399,1910.6,1910.4,5.022]
[1743153231603,5.23423,1910.5,1910.4,5.022]
[1743153231784,10.46812,1910.6,1910.4,5.022]
[1743153231984,5.23399,1910.6,1910.4,5.022]
[1743153232390,10.46756,1910.7,1910.4,5.022]
[1743153232900,10.46762,1910.7,1910.4,5.022]
[1743153233108,5.23396,1910.6,1910.4,5.07433934]
[1743153233713,5.23396,1910.6,1910.4,5.022]
[1743153234092,5.23423,1910.5,1910.4,5.022]
[1743153234404,5.23368,1910.7,1910.4,5.022]
[1743153234586,5.23368,1910.7,1910.4,5.07433935]
[1743153235012,10.46754,1910.7,1910.4,5.022]